fUST/lending_fUST_20260314
["ID","MTS","AMOUNT","RATE_DAILY","PERIOD"]
[408323891,1773421845972,-2329.18508868,9.701e-05,2]
[408323892,1773421846311,-10809.78781751,9.701e-05,2]
[408323893,1773421846323,-802.0264,9.701e-05,2]
[408323894,1773421846334,-472.96690407,9.701e-05,2]
[408323898,1773422114497,-2000.0,6.729e-05,2]
[408323899,1773422116219,-2000.0,6.729e-05,2]
[408323900,1773422117149,-1000.0,6.729e-05,2]
[408323901,1773422117171,-658.0,6.796e-05,2]
[408323902,1773422117193,-342.0,6.797e-05,2]
[408323903,1773422118909,-2000.0,6.797e-05,2]
[408323904,1773422123527,-2000.0,6.729e-05,2]
[408323905,1773422144377,-1400.0,6.729e-05,2]
[408323907,1773422402498,165.79,2e-05,2]
[408323908,1773422404274,165.78,2e-05,2]
[408323909,1773422456014,-1829.80752793,2.058e-05,2]
[408323910,1773422456035,-5000.0,2.079e-05,2]
[408323911,1773422456058,-165.79,2.1e-05,2]
[408323912,1773422456080,-165.79,2.1e-05,2]
[408323968,1773423003365,157.14,2e-05,2]
[408324083,1773423032592,-5000.0,6.146e-05,2]
[408324085,1773423032602,-5.46026005,6.146e-05,2]
[408324087,1773423032613,-490.57899851,6.146e-05,2]
[408324089,1773423032624,-11.96074144,6.146e-05,2]
[408324091,1773423032634,-293.22963568,6.177e-05,2]
[408324093,1773423032644,-466.43489704,6.208e-05,2]
[408324095,1773423032654,-300.0,6.32e-05,2]
[408324096,1773423032663,-300.0,6.32e-05,2]
[408324097,1773423032673,-5891.2285491,6.321e-05,2]
[408324098,1773423032683,-11526.33072787,6.421e-05,2]
[408324099,1773423032692,-12948.37206874,6.521e-05,2]
[408324100,1773423032702,-500.0,6.593e-05,2]
[408324101,1773423032711,-500.0,6.593e-05,2]
[408324102,1773423032721,-500.0,6.593e-05,2]
[408324103,1773423032731,-500.0,6.593e-05,2]
[408324104,1773423032742,-500.0,6.619e-05,2]
[408324105,1773423032752,-500.0,6.619e-05,2]
[408324106,1773423032762,-500.0,6.619e-05,2]
[408324107,1773423032772,-500.0,6.619e-05,2]
[408324108,1773423032782,-500.0,6.619e-05,2]
[408324109,1773423032792,-500.0,6.619e-05,2]
[408324110,1773423032801,-500.0,6.619e-05,2]
[408324111,1773423032811,-500.0,6.619e-05,2]
[408324112,1773423032820,-500.0,6.619e-05,2]
[408324113,1773423032830,-500.0,6.619e-05,2]
[408324114,1773423032840,-500.0,6.619e-05,2]
[408324115,1773423032849,-500.0,6.619e-05,2]
[408324116,1773423032859,-500.0,6.619e-05,2]
[408324117,1773423032874,-500.0,6.619e-05,2]
[408324118,1773423032883,-500.0,6.619e-05,2]
[408324119,1773423032893,-500.0,6.619e-05,2]
[408324120,1773423032903,-500.0,6.619e-05,2]
[408324121,1773423032914,-500.0,6.619e-05,2]
[408324122,1773423032923,-500.0,6.619e-05,2]
[408324123,1773423032934,-500.0,6.619e-05,2]
[408324124,1773423032945,-500.0,6.619e-05,2]
[408324125,1773423032954,-319.67703395,6.619e-05,2]
[408324126,1773423032964,-500.0,6.619e-05,2]
[408324127,1773423032974,-500.0,6.619e-05,2]
[408324128,1773423032984,-500.0,6.619e-05,2]
[408324129,1773423032994,-500.0,6.619e-05,2]
[408324130,1773423033004,-500.0,6.619e-05,2]
[408324131,1773423033016,-500.0,6.619e-05,2]
[408324132,1773423033026,-14370.41340972,6.621e-05,2]
[408324133,1773423033037,-14503.07137275,6.721e-05,2]
[408324134,1773423033046,-420.0,6.952e-05,2]
[408324135,1773423033056,-1000.0,7.141e-05,2]
[408324136,1773423033066,-714.45316941,7.141e-05,2]
[408324137,1773423033076,-587.0,7.647e-05,2]
[408324138,1773423033086,-1500.0,7.688e-05,2]
[408324139,1773423033096,-346.0109701,8.177e-05,2]
[408324140,1773423033106,-500.0,8.219e-05,2]
[408324141,1773423033116,-344.52659969,8.219e-05,2]
[408324142,1773423033126,-2000.0,8.236e-05,2]
[408324143,1773423033137,-1034.2216226,8.325e-05,2]
[408324144,1773423033147,-241.0,8.412e-05,2]
[408324145,1773423033156,-2150.738,8.589e-05,2]
[408324146,1773423033166,-1394.0,8.594e-05,2]
[408324147,1773423033175,-2195.0,8.594e-05,2]
[408324148,1773423033185,-640.0,8.594e-05,2]
[408324149,1773423033194,-748.0,8.594e-05,2]
[408324150,1773423033205,-183.0,8.594e-05,2]
[408324151,1773423033215,-437.0,8.594e-05,2]
[408324152,1773423033225,-536.032,8.594e-05,2]
[408324153,1773423033234,-2500.0,8.784e-05,2]
[408324154,1773423033245,-167.381542,8.904e-05,2]
[408324155,1773423033255,-167.381542,9.052e-05,2]
[408324156,1773423033265,-2230.315306,9.137e-05,2]
[408324157,1773423033276,-167.381542,9.201e-05,2]
[408324158,1773423033286,-174.76411948,9.325e-05,2]
[408324159,1773423033296,-3000.0,9.332e-05,2]
[408324160,1773423033308,-187.118,9.349e-05,2]
[408324161,1773423033318,-167.381542,9.349e-05,2]
[408324162,1773423033328,-500.0,9.473e-05,2]
[408324163,1773423033337,-239.80765339,9.473e-05,2]
[408324164,1773423033348,-500.0,9.49e-05,2]
[408324165,1773423033358,-500.0,9.49e-05,2]
[408324166,1773423033368,-500.0,9.49e-05,2]
[408324167,1773423033378,-500.0,9.49e-05,2]
[408324168,1773423033388,-500.0,9.49e-05,2]
[408324169,1773423033397,-500.0,9.49e-05,2]
[408324170,1773423033408,-500.0,9.49e-05,2]
[408324171,1773423033418,-500.0,9.49e-05,2]
[408324172,1773423033427,-500.0,9.49e-05,2]
[408324173,1773423033437,-500.0,9.49e-05,2]
[408324174,1773423033448,-500.0,9.49e-05,2]
[408324175,1773423033458,-500.0,9.49e-05,2]
[408324176,1773423033468,-259.4512761,9.49e-05,2]
[408324177,1773423033481,-240.5487239,9.49e-05,2]
[408324178,1773423033492,-500.0,9.49e-05,2]
[408324179,1773423033503,-167.44052948,9.49e-05,2]
[408324180,1773423033513,-2687.01074662,9.495e-05,2]
[408324190,1773423038105,-284.196,6.618e-05,2]
[408324228,1773423042052,-215.804,6.618e-05,2]
[408324229,1773423042062,-346.55355567,6.618e-05,2]
[408324230,1773423042074,-153.44644433,6.618e-05,2]
[408324231,1773423042084,-500.0,6.618e-05,2]
[408324232,1773423042094,-500.0,6.618e-05,2]
[408324233,1773423042105,-307.64145753,6.618e-05,2]
[408324234,1773423042114,-7.31209814,6.618e-05,2]
[408324235,1773423042249,-156.46953459,6.618e-05,2]
[408324236,1773423042260,-336.21836727,6.618e-05,2]
[408324237,1773423042270,-183.18788091,6.618e-05,2]
[408324238,1773423042280,-84.59375182,6.618e-05,2]
[408324249,1773423043287,-415.40624818,6.618e-05,2]
[408324250,1773423043296,-500.0,6.618e-05,2]
[408324251,1773423043305,-238.87910028,6.618e-05,2]
[408324252,1773423043318,-261.12089972,6.618e-05,2]
[408324253,1773423043327,-360.93949265,6.618e-05,2]
[408324254,1773423043339,-139.06050735,6.618e-05,2]
[408324255,1773423043348,-500.0,6.618e-05,2]
[408324256,1773423043358,-526.55085562,6.618e-05,2]
[408324257,1773423043367,-500.0,6.618e-05,2]
[408324258,1773423043376,-500.0,6.618e-05,2]
[408324259,1773423043386,-500.0,6.618e-05,2]
[408324260,1773423043396,-500.0,6.618e-05,2]
[408324261,1773423043405,-500.0,6.618e-05,2]
[408324262,1773423043415,-500.0,6.618e-05,2]
[408324263,1773423043424,-500.0,6.618e-05,2]
[408324264,1773423043434,-500.0,6.618e-05,2]
[408324265,1773423043443,-500.0,6.618e-05,2]
[408324266,1773423043453,-500.0,6.618e-05,2]
[408324267,1773423043464,-500.0,6.618e-05,2]
[408324268,1773423043473,-500.0,6.618e-05,2]
[408324269,1773423043483,-500.0,6.618e-05,2]
[408324270,1773423043493,-500.0,6.618e-05,2]
[408324271,1773423043503,-500.0,6.618e-05,2]
[408324272,1773423043513,-500.0,6.618e-05,2]
[408324273,1773423043523,-500.0,6.618e-05,2]
[408324274,1773423043532,-327.68299661,6.618e-05,2]
[408324276,1773423043541,-500.0,6.618e-05,2]
[408324278,1773423043551,-500.0,6.618e-05,2]
[408324280,1773423043561,-500.0,6.618e-05,2]
[408324282,1773423043572,-500.0,6.618e-05,2]
[408324284,1773423043581,-500.0,6.618e-05,2]
[408324286,1773423043591,-500.0,6.618e-05,2]
[408324288,1773423043601,-500.0,6.618e-05,2]
[408324290,1773423043610,-500.0,6.618e-05,2]
[408324292,1773423043620,-500.0,6.618e-05,2]
[408324294,1773423043630,-618.00849723,6.618e-05,2]
[408324296,1773423043640,-500.0,6.618e-05,2]
[408324298,1773423043650,-500.0,6.618e-05,2]
[408324300,1773423043660,-500.0,6.618e-05,2]
[408324302,1773423043670,-500.0,6.618e-05,2]
[408324304,1773423043680,-500.0,6.618e-05,2]
[408324306,1773423043690,-500.0,6.618e-05,2]
[408324308,1773423043699,-500.0,6.618e-05,2]
[408324310,1773423043710,-500.0,6.618e-05,2]
[408324312,1773423043720,-500.0,6.618e-05,2]
[408324314,1773423043730,-500.0,6.618e-05,2]
[408324316,1773423043740,-500.0,6.618e-05,2]
[408324318,1773423043750,-500.0,6.618e-05,2]
[408324320,1773423043760,-500.0,6.618e-05,2]
[408324322,1773423043771,-500.0,6.618e-05,2]
[408324324,1773423043780,-500.0,6.618e-05,2]
[408324326,1773423043790,-500.0,6.618e-05,2]
[408324328,1773423043800,-500.0,6.618e-05,2]
[408324330,1773423043810,-500.0,6.618e-05,2]
[408324332,1773423043819,-500.0,6.618e-05,2]
[408324333,1773423043829,-500.0,6.618e-05,2]
[408324334,1773423043839,-500.0,6.618e-05,2]
[408324335,1773423043848,-500.0,6.618e-05,2]
[408324336,1773423043858,-500.0,6.618e-05,2]
[408324337,1773423043868,-500.0,6.618e-05,2]
[408324338,1773423043881,-500.0,6.618e-05,2]
[408324339,1773423043891,-500.0,6.618e-05,2]
[408324340,1773423043900,-500.0,6.618e-05,2]
[408324341,1773423043910,-500.0,6.618e-05,2]
[408324342,1773423043921,-500.0,6.618e-05,2]
[408324343,1773423043931,-500.0,6.618e-05,2]
[408324344,1773423043941,-500.0,6.618e-05,2]
[408324345,1773423043955,-500.0,6.618e-05,2]
[408324346,1773423043966,-500.0,6.618e-05,2]
[408324347,1773423043976,-500.0,6.618e-05,2]
[408324348,1773423043987,-36663.6285478,9.4e-05,2]
[408324349,1773423043997,-861678.05240079,9.495e-05,2]
[408324350,1773423044010,-250.820863,9.495e-05,2]
[408324418,1773423046304,-301.7671964,9.495e-05,2]
[408324466,1773423063214,-500.0,6.618e-05,2]
[408324467,1773423063244,-281.41082652,6.618e-05,2]
[408324468,1773423603233,155.0,2e-05,2]
[408324469,1773423668155,179.68,3e-05,10]
[408324484,1773424203660,155.0,2e-05,2]
[408324485,1773424204044,155.0,2e-05,2]
[408324537,1773424232461,-2000.0,2.058e-05,2]
[408324539,1773424232474,-3000.0,2.058e-05,2]
[408324541,1773424232485,-1091.09591491,2.079e-05,2]
[408324545,1773424232515,-3908.90408509,2.079e-05,2]
[408324546,1773424232527,-155.0,2.1e-05,2]
[408324548,1773424232538,-155.0,2.1e-05,2]
[408324551,1773424232552,-155.0,2.1e-05,2]
[408324553,1773424232565,-155.0,2.1e-05,2]
[408324555,1773424232577,-155.0,2.2e-05,2]
[408324557,1773424232588,-155.0,2.2e-05,2]
[408324559,1773424232599,-155.0,2.2e-05,2]
[408324561,1773424232610,-283.44591484,2.292e-05,2]
[408324563,1773424232625,-2.9515347,2.292e-05,2]
[408324565,1773424232635,-167.284265,2.584e-05,2]
[408324567,1773424232646,-167.284265,2.907e-05,2]
[408324569,1773424232656,-167.284265,3.231e-05,2]
[408324571,1773424232666,-167.284265,3.554e-05,2]
[408324573,1773424232677,-167.284265,3.877e-05,2]
[408324574,1773424232688,-14.2511403,4.2e-05,2]
[408324639,1773424238237,-153.0331247,4.2e-05,2]
[408324640,1773424238248,-337.94899046,4.292e-05,2]
[408324642,1773424238260,-167.284265,4.523e-05,2]
[408324644,1773424238271,-167.284265,4.846e-05,2]
[408324646,1773424238281,-167.284265,5.169e-05,2]
[408324648,1773424238291,-300.0,5.479e-05,2]
[408324650,1773424238303,-183.996,6.192e-05,2]
[408324651,1773424238314,-163423.84742878,6.216e-05,2]
[408324653,1773424238328,-18225.82166988,6.216e-05,2]
[408324655,1773424238340,-613.04528849,6.216e-05,2]
[408324657,1773424238352,-1804.57478024,6.216e-05,2]
[408324665,1773424240508,-1334.39932216,6.216e-05,2]
[408324666,1773424240520,-510.60723487,6.216e-05,2]
[408324667,1773424240532,-2196.96951557,6.216e-05,2]
[408324702,1773424243406,-5000.0,6.154e-05,2]
[408324703,1773424243416,-5412.76468092,6.216e-05,2]
[408324704,1773424243427,-3283.81634276,6.216e-05,2]
[408324716,1773424246302,-1072.38654511,6.216e-05,2]
[408324717,1773424246462,-540.7883241,6.216e-05,2]
[408324718,1773424803905,165.58,2e-05,2]
[408324724,1773425403542,165.58,2e-05,2]
[408324750,1773425432183,-284.79628156,4.508e-05,2]
[408324753,1773425432195,-283.624,4.508e-05,2]
[408324758,1773425432236,-257.1643241,4.508e-05,2]
[408324760,1773425432246,-97.3306759,4.553e-05,2]
[408324965,1773425438349,-4217.19999998,4.508e-05,2]
[408324967,1773425438362,-431.87462275,4.508e-05,2]
[408325008,1773425440762,-350.92537727,4.508e-05,2]
[408325009,1773425440772,-187.63252603,4.553e-05,2]
[408325019,1773425443482,-702.485,4.553e-05,2]
[408325020,1773425443587,-3099.88396027,4.553e-05,2]
[408325021,1773425443597,-273.91052074,4.758e-05,2]
[408325022,1773425443607,-8147.55208272,4.83e-05,2]
[408325034,1773426002614,156.71,2e-05,2]
[408325064,1773426624415,-3968.27884047,3.991e-05,2]
[408325086,1773426632371,-1031.72115953,3.991e-05,2]
[408325087,1773426632382,-347.61539864,4.031e-05,2]
[408325089,1773426632392,-1541.11890035,4.072e-05,2]
[408325093,1773426632425,-1218.95533411,4.072e-05,2]
[408325095,1773426632435,-1200.0,4.112e-05,2]
[408325097,1773426632444,-279.17239764,4.134e-05,2]
[408325099,1773426632453,-1200.0,4.523e-05,2]
[408325100,1773426632463,-300.0,4.661e-05,2]
[408325102,1773426632474,-264.0,4.661e-05,2]
[408325105,1773426632484,-187.85620347,4.68e-05,2]
[408325108,1773426632493,-8798.99681448,4.83e-05,2]
[408325110,1773426632502,-10000.0,4.841e-05,2]
[408325112,1773426632511,-300.0,4.926e-05,2]
[408325114,1773426632522,-300.0,4.926e-05,2]
[408325116,1773426632532,-300.0,4.926e-05,2]
[408325118,1773426632541,-300.0,4.926e-05,2]
[408325120,1773426632551,-300.0,4.926e-05,2]
[408325121,1773426632560,-300.0,4.926e-05,2]
[408325122,1773426632569,-33.0765647,4.926e-05,2]
[408325123,1773426632582,-266.9234353,4.926e-05,2]
[408325124,1773426632591,-300.0,4.926e-05,2]
[408325125,1773426632600,-300.0,4.926e-05,2]
[408325126,1773426632610,-300.0,4.926e-05,2]
[408325127,1773426632619,-300.0,4.926e-05,2]
[408325128,1773426632629,-113.33902029,4.926e-05,2]
[408325276,1773426638603,-186.66097971,4.926e-05,2]
[408325277,1773426638614,-300.0,4.926e-05,2]
[408325278,1773426638625,-260.47347281,4.926e-05,2]
[408325285,1773426641143,-2437.19472047,4.877e-05,2]
[408325286,1773426641200,-2562.80527953,4.877e-05,2]
[408325287,1773426641210,-39.52652719,4.926e-05,2]
[408325288,1773426641220,-300.0,4.926e-05,2]
[408325289,1773426641230,-2576.81911272,5e-05,2]
[408325290,1773426641240,-600.0,5.023e-05,2]
[408325291,1773426641251,-720.0,5.526e-05,2]
[408325292,1773426641262,-196.457651,5.84e-05,2]
[408325293,1773426641271,-117.15084904,6.078e-05,2]
[408325317,1773426643684,-746.84915096,6.078e-05,2]
[408325319,1773426643694,-329.42342921,6.134e-05,2]
[408325321,1773426643704,-367.5157175,6.173e-05,2]
[408325323,1773426643714,-500.0,6.173e-05,2]
[408325324,1773426643724,-18.44944591,6.173e-05,2]
[408325325,1773426643795,-481.55055409,6.173e-05,2]
[408325326,1773426643806,-500.0,6.173e-05,2]
[408325327,1773426643816,-358.07983034,6.173e-05,2]
[408325328,1773426643826,-500.0,6.173e-05,2]
[408325329,1773426643836,-500.0,6.173e-05,2]
[408325330,1773426643845,-500.0,6.173e-05,2]
[408325331,1773426643855,-500.0,6.173e-05,2]
[408325332,1773426643865,-500.0,6.173e-05,2]
[408325333,1773426643874,-500.0,6.173e-05,2]
[408325334,1773426643884,-500.0,6.173e-05,2]
[408325335,1773426643894,-500.0,6.173e-05,2]
[408325336,1773426643904,-500.0,6.173e-05,2]
[408325337,1773426643914,-500.0,6.173e-05,2]
[408325338,1773426643927,-500.0,6.173e-05,2]
[408325339,1773426643937,-157.0564444,6.173e-05,2]
[408325340,1773426643947,-500.0,6.173e-05,2]
[408325341,1773426643956,-500.0,6.173e-05,2]
[408325342,1773426643967,-500.0,6.173e-05,2]
[408325343,1773426643976,-500.0,6.173e-05,2]
[408325344,1773426643986,-500.0,6.173e-05,2]
[408325345,1773426643997,-500.0,6.173e-05,2]
[408325346,1773426644007,-500.0,6.173e-05,2]
[408325348,1773426644017,-500.0,6.173e-05,2]
[408325350,1773426644027,-500.0,6.173e-05,2]
[408325351,1773426644036,-500.0,6.173e-05,2]
[408325352,1773426644045,-500.0,6.173e-05,2]
[408325353,1773426644055,-500.0,6.173e-05,2]
[408325354,1773426644064,-500.0,6.173e-05,2]
[408325355,1773426644074,-500.0,6.173e-05,2]
[408325356,1773426644083,-500.0,6.173e-05,2]
[408325357,1773426644093,-500.0,6.173e-05,2]
[408325358,1773426644102,-500.0,6.173e-05,2]
[408325359,1773426644112,-500.0,6.173e-05,2]
[408325360,1773426644122,-500.0,6.173e-05,2]
[408325361,1773426644131,-500.0,6.173e-05,2]
[408325362,1773426644141,-500.0,6.173e-05,2]
[408325363,1773426644151,-329.55715144,6.173e-05,2]
[408325364,1773426644160,-500.0,6.173e-05,2]
[408325365,1773426644169,-500.0,6.173e-05,2]
[408325366,1773426644179,-500.0,6.173e-05,2]
[408325367,1773426644189,-500.0,6.173e-05,2]
[408325368,1773426644199,-500.0,6.173e-05,2]
[408325369,1773426644208,-500.0,6.173e-05,2]
[408325370,1773426644218,-500.0,6.173e-05,2]
[408325371,1773426644228,-500.0,6.173e-05,2]
[408325372,1773426644238,-500.0,6.173e-05,2]
[408325373,1773426644248,-500.0,6.173e-05,2]
[408325374,1773426644258,-500.0,6.173e-05,2]
[408325375,1773426644267,-500.0,6.173e-05,2]
[408325376,1773426644276,-500.0,6.173e-05,2]
[408325377,1773426644286,-500.0,6.173e-05,2]
[408325378,1773426644295,-500.0,6.173e-05,2]
[408325379,1773426644304,-500.0,6.173e-05,2]
[408325380,1773426644314,-500.0,6.173e-05,2]
[408325381,1773426644323,-500.0,6.173e-05,2]
[408325382,1773426644332,-500.0,6.173e-05,2]
[408325383,1773426644342,-500.0,6.173e-05,2]
[408325384,1773426644351,-500.0,6.173e-05,2]
[408325385,1773426644361,-500.0,6.173e-05,2]
[408325386,1773426644371,-548.22937195,6.173e-05,2]
[408325387,1773426644380,-500.0,6.173e-05,2]
[408325388,1773426644390,-500.0,6.173e-05,2]
[408325389,1773426644400,-500.0,6.173e-05,2]
[408325390,1773426644409,-500.0,6.173e-05,2]
[408325391,1773426644419,-500.0,6.173e-05,2]
[408325392,1773426644429,-500.0,6.173e-05,2]
[408325393,1773426644441,-500.0,6.173e-05,2]
[408325394,1773426644450,-500.0,6.173e-05,2]
[408325395,1773426644460,-500.0,6.173e-05,2]
[408325396,1773426644470,-500.0,6.173e-05,2]
[408325397,1773426644479,-500.0,6.173e-05,2]
[408325398,1773426644488,-500.0,6.173e-05,2]
[408325399,1773426644497,-500.0,6.173e-05,2]
[408325400,1773426644507,-500.0,6.173e-05,2]
[408325401,1773426644517,-500.0,6.173e-05,2]
[408325402,1773426644526,-500.0,6.173e-05,2]
[408325403,1773426644535,-500.0,6.173e-05,2]
[408325404,1773426644544,-500.0,6.173e-05,2]
[408325405,1773426644554,-219.9507946,6.173e-05,2]
[408325406,1773426644564,-5213.36333396,6.176e-05,2]
[408325407,1773426644573,-196.457651,6.454e-05,2]
[408325408,1773426644583,-1000.0,6.686e-05,2]
[408325409,1773426644592,-940.5276958,6.914e-05,2]
[408325410,1773426644602,-196.457651,7.069e-05,2]
[408325411,1773426644612,-3713.56876333,7.351e-05,2]
[408325412,1773426644625,-3947.79378949,7.351e-05,2]
[408325436,1773426646611,-188.54500238,7.351e-05,2]
[408325437,1773426646621,-577.97867112,7.355e-05,2]
[408325438,1773426646825,-422.02132888,7.355e-05,2]
[408325439,1773426646836,-244.0,7.355e-05,2]
[408325440,1773426646846,-283.75787278,7.355e-05,2]
[408325537,1773427831556,-5000.0,4.897e-05,2]
[408325538,1773427831568,-295.00176221,5.022e-05,2]
[408325539,1773427831577,-10.66648579,5.2e-05,2]
[408325658,1773427837750,-489.33351421,5.2e-05,2]
[408325659,1773427837761,-542.67615435,5.2e-05,2]
[408325660,1773427837771,-348.10207941,7.022e-05,2]
[408325661,1773427837781,-1200.0,7.396e-05,2]
[408325662,1773427837790,-1000.0,7.4e-05,2]
[408325663,1773427837800,-1000.0,7.4e-05,2]
[408325664,1773427837810,-1000.0,7.4e-05,2]
[408325665,1773427837820,-1000.0,7.4e-05,2]
[408325666,1773427837830,-1000.0,7.4e-05,2]
[408325667,1773427837840,-300.0,7.547e-05,2]
[408325668,1773427837850,-300.0,7.547e-05,2]
[408325669,1773427837860,-300.0,7.547e-05,2]
[408325670,1773427837870,-300.0,7.547e-05,2]
[408325671,1773427837880,-300.0,7.547e-05,2]
[408325672,1773427837890,-300.0,7.547e-05,2]
[408325673,1773427837899,-300.0,7.547e-05,2]
[408325674,1773427837909,-300.0,7.547e-05,2]
[408325675,1773427837918,-300.0,7.547e-05,2]
[408325676,1773427837928,-300.0,7.547e-05,2]
[408325677,1773427837937,-300.0,7.547e-05,2]
[408325678,1773427837947,-300.0,7.547e-05,2]
[408325679,1773427837957,-300.0,7.547e-05,2]
[408325680,1773427838231,-300.0,7.547e-05,2]
[408325681,1773427838242,-300.0,7.547e-05,2]
[408325682,1773427838253,-365.27194857,7.551e-05,2]
[408325683,1773427838263,-1652.809305,7.67e-05,2]
[408325684,1773427838279,-175.21775561,7.811e-05,2]
[408325685,1773427838288,-315.07656815,7.811e-05,2]
[408325686,1773427838298,-600.0,7.944e-05,2]
[408325687,1773427838307,-1652.809305,7.993e-05,2]
[408325688,1773427838318,-234.9528712,7.995e-05,2]
[408325689,1773427838328,-268.51756708,7.995e-05,2]
[408325690,1773427838337,-419.13913987,7.995e-05,2]
[408325691,1773427838347,-335.30061679,7.995e-05,2]
[408325692,1773427838356,-1044.96045501,8e-05,2]
[408325693,1773427838366,-493.28990321,8e-05,2]
[408325694,1773427838375,-417.45365551,8.105e-05,2]
[408325695,1773427838384,-500.0,8.143e-05,2]
[408325696,1773427838394,-500.0,8.143e-05,2]
[408325697,1773427838403,-285.54683059,8.143e-05,2]
[408325698,1773427838413,-500.0,8.143e-05,2]
[408325699,1773427838422,-470805.06877693,8.168e-05,2]
[408325700,1773427838435,-1929194.93122307,8.168e-05,2]
[408325701,1773427838445,-2195.0,8.268e-05,2]
[408325702,1773427838454,-640.0,8.268e-05,2]
[408325703,1773427838464,-1394.0,8.268e-05,2]
[408325704,1773427838474,-209.457,8.268e-05,2]
[408325705,1773427838483,-500.0,8.268e-05,2]
[408325706,1773427838493,-471.38473138,8.3e-05,2]
[408325707,1773427838502,-1652.809305,8.316e-05,2]
[408325708,1773427838513,-500.0,8.403e-05,2]
[408325709,1773427838522,-186.01978984,8.403e-05,2]
[408325710,1773427838532,-237.196,8.403e-05,2]
[408325711,1773427838541,-8181.84912448,8.527e-05,2]
[408325712,1773427838551,-166.970293,8.527e-05,2]
[408325713,1773427838561,-166.970293,8.527e-05,2]
[408325714,1773427838570,-166.970293,8.527e-05,2]
[408325715,1773427838580,-166.970293,8.527e-05,2]
[408325716,1773427838589,-500.0,8.542e-05,2]
[408325717,1773427838598,-500.0,8.545e-05,2]
[408325718,1773427838608,-500.0,8.545e-05,2]
[408325719,1773427838617,-500.0,8.545e-05,2]
[408325720,1773427838627,-500.0,8.545e-05,2]
[408325721,1773427838636,-500.0,8.545e-05,2]
[408325722,1773427838647,-243.4376958,8.545e-05,2]
[408325723,1773427838656,-537.6845,8.545e-05,2]
[408325724,1773427838666,-5376.845,8.545e-05,2]
[408325725,1773427838675,-2150.738,8.545e-05,2]
[408325726,1773427838684,-5575.788265,8.6e-05,2]
[408325727,1773427838694,-1652.809305,8.639e-05,2]
[408325728,1773427838702,-2124.58433286,8.655e-05,2]
[408325729,1773427838712,-651.6190654,8.657e-05,2]
[408325730,1773427838721,-544.54466428,8.691e-05,2]
[408325731,1773427838731,-1000.0,8.691e-05,2]
[408325732,1773427838741,-1000.0,8.691e-05,2]
[408325733,1773427838751,-720.0,8.738e-05,2]
[408325734,1773427838760,-1202.52869284,8.8e-05,2]
[408325735,1773427838770,-500.0,8.816e-05,2]
[408325736,1773427838779,-617699.76256988,8.9e-05,2]
[408325737,1773427838791,-249903.85289437,8.9e-05,2]
[408325738,1773427838802,-2760.57351566,8.9e-05,2]
[408325750,1773427840197,-302.91544039,8.087e-05,2]
[408325757,1773427842777,-5000.0,5.148e-05,2]
[408325758,1773427842787,-17073.30893096,8.087e-05,2]
[408325759,1773427842830,-430.2784889,8.087e-05,2]
[408325760,1773427842939,-882.6800012,8.087e-05,2]
[408325762,1773427842951,-342.61999997,8.087e-05,2]
[408325764,1773427842963,-3845.15198489,8.087e-05,2]
[408325790,1773427845845,-61110.10474425,8.087e-05,2]
[408325794,1773428462760,-309.25990968,6.699e-05,2]
[408325962,1773429031751,-294.22129725,6.478e-05,2]
[408325964,1773429031763,-223.52955858,6.512e-05,2]
[408325972,1773429031859,-4776.47044142,6.512e-05,2]
[408325973,1773429031870,-514.0,6.578e-05,2]
[408325975,1773429031881,-185.01959146,6.578e-05,2]
[408325977,1773429031891,-287.29835324,6.666e-05,2]
[408325979,1773429031902,-130.29167454,6.834e-05,2]
[408326103,1773429037995,-1069.70832546,6.834e-05,2]
[408326104,1773429038006,-300.0,6.835e-05,2]
[408326105,1773429038016,-300.0,6.835e-05,2]
[408326106,1773429038026,-2955.3293457,6.836e-05,2]
[408326107,1773429038036,-500.0,6.873e-05,2]
[408326108,1773429038045,-500.0,6.873e-05,2]
[408326109,1773429038054,-2526.13781718,6.89e-05,2]
[408326110,1773429038065,-500.0,6.89e-05,2]
[408326111,1773429038074,-500.0,6.89e-05,2]
[408326112,1773429038083,-500.0,6.89e-05,2]